Cogmind - Beta 16.1 @@@ ROGUE MODE // 2026.04.09 @ 06:21:57 Player: zacyquack Result: Destroyed by H-71 Marshal with Heavy Mass Driver Performance ------------- Evolutions (7) 3500 Regions Visited (11) 2200 Robots Destroyed (13) 65 Value Destroyed (440) 440 Prototype IDs (14) 280 Alien Tech Used (0) 0 Bonus (768) 768 TOTAL SCORE: 7253 Bonus ------- Entered DSFs 500 Met Data Miner 300 Friendly Fire -32 Cogmind --------- Core Integrity 0/1300 Matter 224/300 Energy 100/100 System Corruption 14% Temperature Cool (0) Movement Core (50) Location -3/Research Parts ------- > --- POWER (2) -------- (None) > --- PROPULSION (4) --- (None) > --- UTILITY (13) ----- Advanced Visual Processing Unit Advanced Terrain Scan Processor > --- WEAPON (2) ------- (None) > --- INVENTORY (5) ---- (None) Peak State ------------ > --- POWER ------------ Micro Antimatter Reactor Compact Particle Reactor > --- PROPULSION ------- Field Propulsion Array Field Propulsion Array > --- UTILITY ---------- Advanced Cryofiber Web Compact Battery Improved Matter Compressor Advanced Weight Redist. System Advanced Visual Processing Unit Advanced Terrain Scan Processor Targeting Computer Improved Target Analyzer Core Analyzer Improved Hacking Suite Improved System Shield > --- WEAPON ----------- Heavy Disruptor Cannon > --- INVENTORY -------- Particle Reactor Field Propulsion Array Backup Laser III Disruptor Cannon [Rating: 109] Favorites ----------- Power Makeshift Power Source Engine Makeshift Power Source Power Core Fusion Compressor Reactor Compact Particle Reactor Propulsion Improved Flight Unit Treads Light Treads Wheel Armored Huge Wheel Hover Unit Backup Propulsion III Flight Unit Improved Flight Unit Utility Advanced Visual Processing Unit Device Advanced Terrain Scanner Storage Compact Battery Processor Advanced Visual Processing Unit Hackware Improved Hacking Suite Protection Core Shielding Weapon Subdweller Machine Gun Energy Gun Backup Laser III Energy Cannon Long-range Proton Cannon Ballistic Gun Subdweller Machine Gun Ballistic Cannon Hardcell Cannon Launcher Grenade Launcher Special Weapon Remote Datajack Slashing Weapon Mining Claw Build | -11 -10 -10 -8 -6 -6 -6 -5 -5 -5 -4 -3 ------- Run | Yrd Mat Sub Rec Fac Low Dat Pro Fac DSF Fac Res Slots Evolved 14 | . . . . 8 . . . 2 . 2 2 Power 1 | . . . . 1 . . . . . . . Propulsion 2 | . . . . 1 . . . . . . 1 Utility 11 | . . . . 6 . . . 2 . 2 1 Weapon . | . . . . . . . . . . . . Parts Attached 71 | 6 8 6 3 11 3 . 2 4 4 7 17 Power 12 | 1 2 1 1 1 2 . . 1 . . 3 Engine 8 | 1 2 1 1 1 2 . . . . . . Core 1 | . . . . . . . . 1 . . . Reactor 3 | . . . . . . . . . . . 3 Propulsion 14 | 2 3 1 . 2 . . . 1 2 . 3 Treads 2 | 2 . . . . . . . . . . . Leg . | . . . . . . . . . . . . Wheel 3 | . . . . . . . . 1 2 . . Hover . | . . . . . . . . . . . . Flight 9 | . 3 1 . 2 . . . . . . 3 Utility 28 | 1 1 1 2 7 1 . 2 2 2 3 6 Device 12 | . . . 1 3 1 . 1 1 2 . 3 Storage 3 | 1 . . . . . . . . . 1 1 Processor 6 | . . . 1 2 . . . 1 . 1 1 Hackware 3 | . . . . 2 . . . . . 1 . Protection 4 | . 1 1 . . . . 1 . . . 1 Artifact . | . . . . . . . . . . . . Weapon 17 | 2 2 3 . 1 . . . . . 4 5 Energy Gun 1 | . . . . . . . . . . . 1 Energy Cannon 6 | . . . . . . . . . . 3 3 Ballistic Gun 6 | 2 1 2 . 1 . . . . . . . Ballistic Cannon 1 | . . . . . . . . . . . 1 Launcher 1 | . . 1 . . . . . . . . . Special Weapon 1 | . . . . . . . . . . 1 . Impact Weapon . | . . . . . . . . . . . . Slashing Weapon 1 | . 1 . . . . . . . . . . Piercing Weapon . | . . . . . . . . . . . . Special Melee Weapon . | . . . . . . . . . . . . Unidentified Prototypes 3 | . 1 . . . . . . . . . 2 Parts Lost 56 | . 1 5 . . 2 . 12 . 5 7 24 Power 11 | . 1 1 . . . . 3 . 1 . 5 Propulsion 10 | . . 1 . . 2 . 2 . . 2 3 Utility 21 | . . . . . . . 5 . 4 1 11 Weapon 14 | . . 3 . . . . 2 . . 4 5 Highest Loss Streak 23 | . 1 5 . . 2 . 10 . 4 4 23 To Critical Strikes 1 | . . . . . . . . . . . 1 Average Backups 3 | 1 4 3 4 2 3 5 4 . 1 1 2 Power . | 1 1 . . . . 1 . . . . . Propulsion . | . . . 1 . . . . . . . . Utility 1 | . . . 1 2 3 4 3 . . . . Weapon . | . 1 1 1 . . . . . . . 1 Tool/Special . | . . . . . . . . . . . . Unused Backups 7 | . 2 . 1 1 1 . . . 1 . 1 Power 1 | . 1 . . . . . . . . . . Propulsion 3 | . 1 . 1 . . . . . 1 . . Utility 2 | . . . . 1 1 . . . . . . Weapon 1 | . . . . . . . . . . . 1 Tool/Special . | . . . . . . . . . . . . Average Slot Usage (%) 78 | . 82 76 88 92 96 93 83 47 55 50 63 Engine 8 | . 13 7 8 12 13 13 11 . . . 5 Wheel 1 | . . . . . . . . 2 8 8 . Flight 12 | . 20 28 28 19 16 13 8 . . . 6 Device 10 | . . . 6 11 20 20 15 4 11 4 5 Storage 1 | . 3 . . . . . . . . . 7 Processor 16 | . . . 9 17 20 20 20 22 23 20 20 Hackware 8 | . . . . 10 13 13 12 5 5 5 8 Protection 3 | . 8 22 12 6 . . 3 5 3 . . Energy Cannon 1 | . . . . . . . . . . 8 2 Ballistic Gun 9 | . 19 17 22 13 13 13 11 . . . . Peak Build Rating 109 | 6 12 15 18 48 49 49 49 31 44 49 109 Average Rating 41 | 4 10 11 14 41 47 49 42 30 37 43 76 On Entrance 24 | . 6 11 11 18 48 49 49 17 31 29 26 Avg Prop Armor Cover (%) . | . . . . . . . . . . . . Naked Turns . | . . . . . . . . . . . . Heaviest Build 42 | 12 12 17 13 22 22 18 19 8 9 19 42 Greatest Support 44 | 40 40 10 16 22 22 17 17 16 44 40 39 Greatest Overweight (x) 4 | . 1 1 . . 1 1 1 2 . 4 2 Average Overweight (x) . | . . . . . . 1 . . . . . Largest Inventory Capacity 8 | 8 8 5 5 5 5 5 5 5 5 5 5 Average Capacity 5 | 7 5 5 5 5 5 5 5 5 5 5 5 Most Carried 6 | 4 6 5 5 4 5 5 5 2 4 5 5 Average Carried 3 | 1 4 3 4 2 3 5 4 . 1 1 3 Final Capacity 8 | 8 5 5 5 5 5 5 5 5 5 5 5 Final Carried 5 | 1 5 4 5 4 5 5 3 . 3 1 . Class Distribution -------------------- 29% | Mutant 22% | Hacker-Skirmisher 21% | Hacker-Mutant 17% | Hacker-Scout 7% | Skirmisher Dominant Class ---------------- Mutant | -10/Materials Mutant | -10/Subcaves Mutant | -8/Recycling Hacker-Scout | -6/Factory Hacker-Skirmisher | -6/Lower Caves Hacker-Skirmisher | -6/Data Miner Hacker-Skirmisher | -5/Proximity Caves Mutant | -5/Factory Mutant | -5/DSF Skirmisher | -4/Factory Hacker-Mutant | -3/Research Resources | -11 -10 -10 -8 -6 -6 -6 -5 -5 -5 -4 -3 ----------- Run | Yrd Mat Sub Rec Fac Low Dat Pro Fac DSF Fac Res Matter Collected 924 | 185 175 66 113 105 103 . 76 . 1 . 100 Remotely . | . . . . . . . . . . . . Salvage Created 473 | . 156 29 55 79 67 . 35 . . . 52 Parts 29 | . 13 4 4 3 1 . 2 . . . 2 Haulers Intercepted . | . . . . . . . . . . . . Recyclers Shooed . | . . . . . . . . . . . . Parts Field Recycled . | . . . . . . . . . . . . Retrieved Matter . | . . . . . . . . . . . . Parts Self-Destructed 9 | . . 3 . . 3 . 3 . . . . Prevented 1 | . . . . . 1 . . . . . . Parts Restored . | . . . . . . . . . . . . Kills | -11 -10 -10 -8 -6 -6 -6 -5 -5 -5 -4 -3 ------- Run | Yrd Mat Sub Rec Fac Low Dat Pro Fac DSF Fac Res Combat Hostiles Destroyed 11 | . 4 2 1 1 1 . 1 . . . 1 Guns 10 | . 4 2 1 1 1 . 1 . . . . Cannons 1 | . . . . . . . . . . . 1 Classes Destroyed 7 | . 3 . 1 1 1 . 1 . . . . Builder 1 | . 1 . . . . . . . . . . Operator 1 | . . . . 1 . . . . . . . Swarmer 4 | . 2 2 . . . . . . . . . Grunt 2 | . 2 . . . . . . . . . . Sentry 3 | . . . 1 1 1 . . . . . . Programmer 2 | . . . . . . . 1 . . . 1 Decomposer 1 | . . . . . 1 . . . . . . Best Kill Streak 2 | . 2 2 1 1 1 . 1 . . . 1 Combat Bots Only 2 | . 2 2 1 1 1 . 1 . . . 1 Max Kills in Single Turn 1 | . 1 1 1 1 1 . 1 . . . 1 Gunslinging . | . . . . . . . . . . . . Exploded . | . . . . . . . . . . . . Melee . | . . . . . . . . . . . . Uniques/NPCs Destroyed . | . . . . . . . . . . . . Combat | -11 -10 -10 -8 -6 -6 -6 -5 -5 -5 -4 -3 -------- Run | Yrd Mat Sub Rec Fac Low Dat Pro Fac DSF Fac Res Hostile Shots Fired 722 | . 44 47 4 9 54 . 91 . 75 56 342 Missed 292 | . 10 22 1 6 23 . 34 . 29 18 149 Hits 430 | . 34 25 3 3 31 . 57 . 46 38 193 Projectile 430 | . 34 25 3 3 31 . 57 . 46 38 193 AOE 5 | . . 5 . . . . . . . . . Critical Strikes 17 | . . . 1 . . . 2 . 1 . 13 Damage Taken 7172 | . 307 510 44 22 233 . 928 . 837 834 3457 Core 2755 | . 108 99 . 14 55 . 501 . 367 263 1348 Absorbed by Shields . | . . . . . . . . . . . . Redirected to Shielding 152 | . 22 12 . 3 . . 47 . 68 . . Ignored by Resistances 53 | . . . . . . . . . 30 . 23 Regen/Repaired (Parts) 4 | . . . . . . . . . . . 4 Core Remaining (%) 57 | 100 . . 17 . . . 32 . 63 77 . Volleys Fired 80 | . 29 9 3 6 7 . 10 . . 2 14 Largest 2 | . 2 2 2 2 2 . 2 . . 1 2 Hottest 162 | . 40 55 55 58 58 . 58 . . 81 162 Shots Fired 116 | . 30 16 6 12 14 . 17 . . 2 19 Gun 96 | . 30 12 6 12 14 . 17 . . . 5 Cannon 15 | . . . . . . . . . . 1 14 Launcher 4 | . . 4 . . . . . . . . . Special 1 | . . . . . . . . . . 1 . Kinetic 96 | . 30 12 6 12 14 . 17 . . . 5 Thermal 5 | . . . . . . . . . . . 5 Explosive 4 | . . 4 . . . . . . . . . Electromagnetic 10 | . . . . . . . . . . 1 9 Robot Hit Streak 11 | . 6 8 4 11 4 . 5 . . 2 9 Robot Miss Streak 6 | . 2 3 1 3 3 . 6 . . . 3 Penetration Max . | . . . . . . . . . . . . Secondary Targets 1 | . . 1 . . . . . . . . . Max Gunslinging Chain 1 | . . 1 . . . . . . . . . Shots Hit Robots 86 | . 24 12 5 10 10 . 10 . . 2 13 Core Hits 45 | . 7 5 2 6 9 . 10 . . 1 5 Critical Kills . | . . . . . . . . . . . . Critical Parts Destroyed 1 | . 1 . . . . . . . . . . Critical Strikes 1 | . 1 . . . . . . . . . . Destroy 1 | . 1 . . . . . . . . . . Melee Attacks 1 | . 1 . . . . . . . . . . Impact . | . . . . . . . . . . . . Slashing 1 | . 1 . . . . . . . . . . Piercing . | . . . . . . . . . . . . Sneak Attacks 1 | . 1 . . . . . . . . . . Combat Hostiles . | . . . . . . . . . . . . Follow-up Attacks . | . . . . . . . . . . . . Damage Inflicted 1517 | . 243 360 74 184 190 . 189 . . 19 258 Guns 993 | . 191 104 74 184 190 . 189 . . . 61 Cannons 192 | . . . . . . . . . . 14 178 Explosions 256 | . . 256 . . . . . . . . . Melee 52 | . 52 . . . . . . . . . . Ramming 24 | . . . . . . . . . . 5 19 Kinetic 1068 | . 191 104 74 184 190 . 189 . . . 136 Thermal 61 | . . . . . . . . . . . 61 Explosive 256 | . . 256 . . . . . . . . . Electromagnetic 56 | . . . . . . . . . . 14 42 Impact . | . . . . . . . . . . . . Slashing 52 | . 52 . . . . . . . . . . Piercing . | . . . . . . . . . . . . Highest Corruption 14 | . . . . . . . 3 . . . 14 Average Corruption 4 | . . . . . . . 2 . . . 6 Corruption Purged . | . . . . . . . . . . . . Corruption Blocked . | . . . . . . . . . . . . Effects 8 | . . . . . . . 4 . . . 4 Message Errors 1 | . . . . . . . 1 . . . . Matter Fused 1 | . . . . . . . . . . . 1 Heat Flow Errors 2 | . . . . . . . 1 . . . 1 Energy Discharges 1 | . . . . . . . . . . . 1 Data Loss (minor) 2 | . . . . . . . 2 . . . . Alerts 1 | . . . . . . . . . . . 1 Overload Shots . | . . . . . . . . . . . . Overflow Damage 16 | . 12 4 . . . . . . . . . Projectiles . | . . . . . . . . . . . . Explosions 4 | . . 4 . . . . . . . . . Melee 12 | . 12 . . . . . . . . . . Knockbacks 1 | . . . . . . . . . . . 1 Impact . | . . . . . . . . . . . . Kinetic 1 | . . . . . . . . . . . 1 Secondary . | . . . . . . . . . . . . Self-Inflicted Damage 19 | . . 11 . . . . . . . . 8 Shots 1 | . . 1 . . . . . . . . . Rammed 9 | . . . . . . . . . . 5 4 Targets Rammed 9 | . . . . . . . . . . 5 4 Kicked . | . . . . . . . . . . . . Crushed . | . . . . . . . . . . . . Highest Temperature 366 | . 366 . 56 18 19 . 87 . . . 231 Average Temperature 59 | . 79 . 31 8 11 . 37 . . . 98 Received Heat Transfer 1085 | . 84 30 36 6 66 . 24 . 222 150 467 Effects 1 | . 1 . . . . . . . . . . Energy Bleed 1 | . 1 . . . . . . . . . . Siege Activations . | . . . . . . . . . . . . Martial Activations . | . . . . . . . . . . . . Shielding Activations . | . . . . . . . . . . . . Robots Disrupted . | . . . . . . . . . . . . Combat Hostiles . | . . . . . . . . . . . . Robots Corrupted . | . . . . . . . . . . . . Combat Hostiles . | . . . . . . . . . . . . Parts Fried . | . . . . . . . . . . . . Impact Corruptions . | . . . . . . . . . . . . Robots Melted . | . . . . . . . . . . . . Combat Hostiles . | . . . . . . . . . . . . Parts Melted . | . . . . . . . . . . . . Heat Transferred 148 | . . . . . . . . . . . 148 Parts Sabotaged . | . . . . . . . . . . . . Parts Stolen . | . . . . . . . . . . . . Parts Stripped . | . . . . . . . . . . . . Power Chain Reactions . | . . . . . . . . . . . . Alert | -11 -10 -10 -8 -6 -6 -6 -5 -5 -5 -4 -3 ------- Run | Yrd Mat Sub Rec Fac Low Dat Pro Fac DSF Fac Res Maximum Alert Level 1 | . . . . 1 . . . . . . . Low Security (%) 86 | 100 100 . 100 22 . . . 100 100 100 100 Level 1 13 | . . . . 77 . . . . . . . Level 2 . | . . . . . . . . . . . . Level 3 . | . . . . . . . . . . . . Level 4 . | . . . . . . . . . . . . Level 5 . | . . . . . . . . . . . . High Security . | . . . . . . . . . . . . Max Security . | . . . . . . . . . . . . Peak Influence 250 | . 71 . 21 250 . . . . 15 35 75 Initial 200 | . . . 21 200 . . . . . . . Average 44 | . 17 . 7 213 . . . . 5 3 6 Influence Increases 800 | . 141 70 21 305 20 . 30 . 30 45 138 Destroy 0b10 Robot/C 220 | . 80 40 20 20 20 . 20 . . . 20 Destroy 0b10 Robot/NC 10 | . 5 . . 5 . . . . . . . Destroy Leader 40 | . 10 . . 10 . . 10 . . . 10 Successful Hack 100 | . 16 . . 70 . . . . . . 14 Destroy Structure 5 | . . . 1 . . . . . . . 4 Advance Influence 200 | . . . . 200 . . . . . . . Lose Combat Pursuer 225 | . 30 30 . . . . . . 30 45 90 Influence Decreases 800 | . 70 96 66 130 195 . 30 . 30 45 138 Entered New Map 125 | . . 35 24 . 66 . . . . . . Time Decay 451 | . 60 15 42 130 120 . 30 . . 20 34 Lost Part 224 | . 10 46 . . 9 . . . 30 25 104 Squads Dispatched 10 | . 1 . . 4 . . . . 1 . 4 Investigation 6 | . 1 . . 4 . . . . . . 1 Extermination 1 | . . . . . . . . . . . 1 Reinforcement 3 | . . . . . . . . . 1 . 2 Assault . | . . . . . . . . . . . . Garrison . | . . . . . . . . . . . . Intercept . | . . . . . . . . . . . . Searches Triggered . | . . . . . . . . . . . . Construction Impeded . | . . . . . . . . . . . . Haulers Reinforced . | . . . . . . . . . . . . Active Scanning Responses . | . . . . . . . . . . . . Cargo Convoy Interrupts . | . . . . . . . . . . . . Stealth | -11 -10 -10 -8 -6 -6 -6 -5 -5 -5 -4 -3 --------- Run | Yrd Mat Sub Rec Fac Low Dat Pro Fac DSF Fac Res Distress Signals . | . . . . . . . . . . . . Communications Jammed . | . . . . . . . . . . . . Distress Signals . | . . . . . . . . . . . . Times Spotted 71 | . 11 13 1 2 1 . 7 . 7 8 21 Peak Tracking Total 10 | . 5 9 1 1 1 . 5 . 5 5 10 Tactical Retreats 8 | . 2 1 . . . . . . 2 1 2 Traps | -11 -10 -10 -8 -6 -6 -6 -5 -5 -5 -4 -3 ------- Run | Yrd Mat Sub Rec Fac Low Dat Pro Fac DSF Fac Res Traps Triggered 2 | . . . . 1 . . . . 1 . . Indirectly . | . . . . . . . . . . . . Trap Hack Attempts . | . . . . . . . . . . . . Triggered . | . . . . . . . . . . . . Disarmed . | . . . . . . . . . . . . Reprogrammed . | . . . . . . . . . . . . Reused . | . . . . . . . . . . . . Traps Extracted . | . . . . . . . . . . . . Installed . | . . . . . . . . . . . . Triggered . | . . . . . . . . . . . . Machines | -11 -10 -10 -8 -6 -6 -6 -5 -5 -5 -4 -3 ---------- Run | Yrd Mat Sub Rec Fac Low Dat Pro Fac DSF Fac Res Machines Disabled . | . . . . . . . . . . . . Max in Single Turn . | . . . . . . . . . . . . Garrison Access 2 | . . . . . . . . . . 1 1 Machines Repaired . | . . . . . . . . . . . . Machines Dismantled . | . . . . . . . . . . . . Machines Sabotaged . | . . . . . . . . . . . . Overloaded Fab Kills . | . . . . . . . . . . . . Hacking | -11 -10 -10 -8 -6 -6 -6 -5 -5 -5 -4 -3 --------- Run | Yrd Mat Sub Rec Fac Low Dat Pro Fac DSF Fac Res Machines Accessed 27 | . 2 . 8 4 1 4 . 1 . 2 5 Terminals 13 | . 2 . 4 4 . . . 1 . . 2 Fabricators 1 | . . . . . . . . . . . 1 Repair Stations 1 | . . . . . . . . . . . 1 Recycling Units 4 | . . . 4 . . . . . . . . Scanalyzers 1 | . . . . . . . . . . 1 . Garrison Access 2 | . . . . . . . . . . 1 1 Total Hacks 98 | . 6 . 20 18 5 29 . 1 . 10 9 Successful 65 | . 1 . 6 7 5 29 . 1 . 10 6 Failed 33 | . 5 . 14 11 . . . . . . 3 Catastrophic 5 | . 1 . 3 . . . . . . . 1 Database Lockouts . | . . . . . . . . . . . . Manual 8 | . 3 . . 1 . . . . . 2 2 Terminals 45 | . 6 . 15 18 . . . 1 . . 5 Fabricators 2 | . . . . . . . . . . . 2 Repair Stations 1 | . . . . . . . . . . . 1 Recycling Units 5 | . . . 5 . . . . . . . . Scanalyzers 8 | . . . . . . . . . . 8 . Garrison Access 3 | . . . . . . . . . . 2 1 Terminal Hacks 46 | . 1 . 1 7 5 29 . 1 . . 2 Record 21 | . . . . 4 5 11 . . . . 1 Part Schematic 12 | . . . 1 1 . 10 . . . . . Robot Schematic 5 | . . . . . . 5 . . . . . Prototype ID Bank 3 | . . . . . . 3 . . . . . Open DSF 1 | . . . . . . . . 1 . . . Branch Access Points 2 | . 1 . . 1 . . . . . . . Alert Level 1 | . . . . . . . . . . . 1 Recall Investigation 1 | . . . . 1 . . . . . . . Fabricator Hacks 2 | . . . . . . . . . . . 2 Load Schematic 1 | . . . . . . . . . . . 1 Build 1 | . . . . . . . . . . . 1 Repair Station Hacks 1 | . . . . . . . . . . . 1 Refit 1 | . . . . . . . . . . . 1 Recycling Unit Hacks 5 | . . . 5 . . . . . . . . Report Inventory 4 | . . . 4 . . . . . . . . Retrieve Components 1 | . . . 1 . . . . . . . . Scanalyzer 8 | . . . . . . . . . . 8 . Insert Component 1 | . . . . . . . . . . 1 . Analyze 3 | . . . . . . . . . . 3 . Retrieve Study 4 | . . . . . . . . . . 4 . Garrison Access Hacks 3 | . . . . . . . . . . 2 1 Seal Access 2 | . . . . . . . . . . 1 1 Coupler Status 1 | . . . . . . . . . . 1 . Unauthorized Hacks . | . . . . . . . . . . . . Terminals . | . . . . . . . . . . . . Fabricators . | . . . . . . . . . . . . Repair Stations . | . . . . . . . . . . . . Recycling Units . | . . . . . . . . . . . . Scanalyzers . | . . . . . . . . . . . . Garrison Access . | . . . . . . . . . . . . Data Cores Recovered . | . . . . . . . . . . . . Used . | . . . . . . . . . . . . Hacking Detections 16 | . 2 . 4 4 . . . . . 2 4 Full Trace Events 10 | . 2 . 4 3 . . . . . . 1 Feedback Events . | . . . . . . . . . . . . Feedback Blocked 1 | . . . . 1 . . . . . . . Robot Schematics Acquired 5 | . . . . . . 5 . . . . . Robots Built . | . . . . . . . . . . . . Authchips . | . . . . . . . . . . . . Time . | . . . . . . . . . . . . Total Robot Build Rating . | . . . . . . . . . . . . Part Schematics Acquired 13 | . . . 1 1 . 10 . . . 1 . Parts Built 1 | . . . . . . . . . . . 1 Authchips . | . . . . . . . . . . . . Time 76 | . . . . . . . . . . . 76 Total Part Build Rating 5 | . . . . . . . . . . . 5 Part Studies Acquired 4 | . . . . . . . . . . 4 . Parts Repaired . | . . . . . . . . . . . . Time . | . . . . . . . . . . . . Parts Recycled . | . . . . . . . . . . . . Recycled Matter . | . . . . . . . . . . . . Retrieved Matter . | . . . . . . . . . . . . Retrieved Components 2 | . . . 2 . . . . . . . . Parts Scanalyzed 1 | . . . . . . . . . . 1 . Part Schematics Acquired 1 | . . . . . . . . . . 1 . Parts Damaged 1 | . . . . . . . . . . 1 . Bothacking | -11 -10 -10 -8 -6 -6 -6 -5 -5 -5 -4 -3 ------------ Run | Yrd Mat Sub Rec Fac Low Dat Pro Fac DSF Fac Res Used RIF Installer . | . . . . . . . . . . . . Robots Hacked 1 | . . . . . . . . . . 1 . Non-combat . | . . . . . . . . . . . . Combat 1 | . . . . . . . . . . 1 . Robot Hacks Applied 1 | . . . . . . . . . . 1 . parse_system 1 | . . . . . . . . . . 1 . Relay Couplers Released . | . . . . . . . . . . . . Fabnet Peak Effective % . | . . . . . . . . . . . . Robots Rewired . | . . . . . . . . . . . . Allies Hacked . | . . . . . . . . . . . . Hacks Repelled . | . . . . . . . . . . . . Allies | -11 -10 -10 -8 -6 -6 -6 -5 -5 -5 -4 -3 -------- Run | Yrd Mat Sub Rec Fac Low Dat Pro Fac DSF Fac Res Total Allies . | . . . . . . . . . . . . Largest Group . | . . . . . . . . . . . . Highest-Rated Group . | . . . . . . . . . . . . Highest-Rated Ally . | . . . . . . . . . . . . Total Orders . | . . . . . . . . . . . . Ally Attacks . | . . . . . . . . . . . . Total Damage . | . . . . . . . . . . . . Kills . | . . . . . . . . . . . . Allies Corrupted . | . . . . . . . . . . . . Allies Melted . | . . . . . . . . . . . . Intel | -11 -10 -10 -8 -6 -6 -6 -5 -5 -5 -4 -3 ------- Run | Yrd Mat Sub Rec Fac Low Dat Pro Fac DSF Fac Res Active Infowar (turns) 2040 | . . . 99 271 423 125 352 56 91 242 381 Optics 2040 | . . . 99 271 423 125 352 56 91 242 381 Terrain 961 | . . . . 213 423 125 172 . 28 . . Robot Analysis Total . | . . . . . . . . . . . . Derelict Logs Recovered 3 | . . . . . 1 . 2 . . . . Drone Launches . | . . . . . . . . . . . . Drone Recoveries . | . . . . . . . . . . . . Exploration | -11 -10 -10 -8 -6 -6 -6 -5 -5 -5 -4 -3 ------------- Run | Yrd Mat Sub Rec Fac Low Dat Pro Fac DSF Fac Res Turns Passed 2475 | 65 259 67 143 271 423 125 352 56 91 242 381 Spaces Moved 2325 | 39 203 74 323 317 209 112 331 44 68 213 392 Core 156 | 8 . . . . . . 81 16 . 13 38 Treads 62 | 31 31 . . . . . . . . . . Legs . | . . . . . . . . . . . . Wheels 296 | . . . . . . . . 28 68 200 . Hover 51 | . . . . . . . . . . . 51 Flight 1760 | . 172 74 323 317 209 112 250 . . . 303 Fastest Speed 32 | 50 37 37 37 32 32 112 40 100 95 50 37 Average Speed 69 | 137 83 42 37 32 95 112 97 118 97 88 48 Slowest Speed 250 | 160 160 107 37 32 112 112 120 150 100 250 150 Overloaded Moves . | . . . . . . . . . . . . Propulsion Burnouts . | . . . . . . . . . . . . Robots Hopped 11 | . . . 3 . . . 1 . . . 7 Potential Cave-ins . | . . . . . . . . . . . . Cave-ins Triggered . | . . . . . . . . . . . . Exploration Rate (%) 33 | 3 33 8 78 7 33 79 63 2 76 6 10 Regions Visited 11 Branch Regions 5 Pre-discovered Areas 2 | . . . . . 1 1 . . . . . Known Exits Taken 2 | . . . . 1 . . . 1 . . . Unknown Exits Taken 8 | 1 1 1 1 . 1 1 1 . . 1 . Scrap Searched 4 | . . . . . 3 . 1 . . . . Spaces Dug . | . . . . . . . . . . . . Terrain Destroyed 20 | . . 18 . . . . . . . . 2 Melee . | . . . . . . . . . . . . Projectile 2 | . . . . . . . . . . . 2 AOE 18 | . . 18 . . . . . . . . . Terrain Rammed . | . . . . . . . . . . . . Walls Destroyed . | . . . . . . . . . . . . Machines Disabled . | . . . . . . . . . . . . Actions | -11 -10 -10 -8 -6 -6 -6 -5 -5 -5 -4 -3 --------- Run | Yrd Mat Sub Rec Fac Low Dat Pro Fac DSF Fac Res Total 3057 | 51 267 94 338 473 418 111 343 48 93 261 560 Wait 474 | . 8 . . 126 187 . . . 12 30 111 Move 2292 | 38 202 73 316 316 208 111 328 43 67 212 378 Hop 11 | . . . 3 . . . 1 . . . 7 Pick Up 75 | 7 11 3 6 10 6 . 1 1 8 5 17 Fast Attach 9 | . 2 . 2 . 1 . . . . . 4 Attach 59 | 6 2 6 2 8 1 . 3 4 4 7 16 Detach 2 | . . 2 . . . . . . . . . Swap 13 | . 4 1 1 4 3 . . . . . . Drop 32 | . 8 . 5 3 5 . . . 2 . 9 Fire 80 | . 29 9 3 6 7 . 10 . . 2 14 Melee 1 | . 1 . . . . . . . . . . Ram 9 | . . . . . . . . . . 5 4 Kick . | . . . . . . . . . . . . Crush . | . . . . . . . . . . . . Escape Stasis . | . . . . . . . . . . . . Rewire . | . . . . . . . . . . . . Trap . | . . . . . . . . . . . . Miscellaneous . | . . . . . . . . . . . . Route ------- -11/Scrapyard -10/Materials (discovered 3 exits: *Min x2 / [*Sub]) -10/Subcaves -8/Recycling -6/Factory (discovered 2 exits: *Low x2) -6/Lower Caves -6/Data Miner -5/Proximity Caves -5/Factory -5/DSF -4/Factory -3/Research History --------- Turn | Location | Event 36 | -11/Scrapyard | Discovered new exit (range 14) 66 | -11/Scrapyard | Entered Materials 139 | -10/Materials | Discovered new exit (range 8) 314 | -10/Materials | Discovered new exit (range 5) 315 | -10/Materials | Identified exit to Mines 322 | -10/Materials | Build established: Mutant 325 | -10/Materials | Entered Subcaves 326 | -10/Subcaves | Approached by a straggling Scientist 338 | -10/Subcaves | Core integrity fell below 50% 344 | -10/Subcaves | Ambushed by Subdweller buried in earth 356 | -10/Subcaves | Shifting Twisted Machinery released Battle Rifle 356 | -10/Subcaves | Discovered new exit (range 11) 358 | -10/Subcaves | Shifting Twisted Machinery released Sub. Machine Gun 362 | -10/Subcaves | Ambushed by angry Subdweller bent on revenge 371 | -10/Subcaves | Core integrity fell below 20% 391 | -10/Subcaves | Lost 5 parts (1p1n3w) 392 | -10/Subcaves | Entered Recycling 393 | -8/Recycling | Met a Zionite searching for Scraptown 524 | -8/Recycling | Discovered new exit (range 15) 535 | -8/Recycling | Entered Factory 535 | -6/Factory | Evolved 8 slots: Power x1, Propulsion x1, Utility x6 637 | -6/Factory | Identified exit to Lower Caves 806 | -6/Factory | Entered Lower Caves 863 | -6/Lower Caves | Build established: Hacker-Scout 1006 | -6/Lower Caves | Attracted the attention of an 0b10 checkpoint 1125 | -6/Lower Caves | A Derelict revealed a hidden shortcut to meet someone special 1166 | -6/Lower Caves | Learned Extension trap positions 1166 | -6/Lower Caves | Learned Research stockpile data 1229 | -6/Lower Caves | Entered Data Miner 1229 | -6/Data Miner | Discovered new exit (range 6) 1246 | -6/Data Miner | Met Data Miner 1284 | -6/Data Miner | Received God Mode back door access code from Data Miner 1294 | -6/Data Miner | Learned location of Section 7 (-3) 1294 | -6/Data Miner | Acquired the access code to Warlord's prototype stash 1314 | -6/Data Miner | Build established: Hacker-Skirmisher 1354 | -6/Data Miner | Entered Proximity Caves 1489 | -5/Proximity Caves | Learned Factory security intel 1685 | -5/Proximity Caves | Learned Factory machine intel 1698 | -5/Proximity Caves | Spotted B-75 Beast 1699 | -5/Proximity Caves | Core integrity fell below 50% 1700 | -5/Proximity Caves | Discovered new exit (range 13) 1706 | -5/Proximity Caves | Entered Factory 1706 | -5/Factory | Evolved 2 slots: Utility x2 1708 | -5/Factory | Loaded intel: 271 machine locations 1726 | -5/Factory | Lost 10 parts (3p1n4u2w) 1762 | -5/Factory | Identified exit to DSF 1762 | -5/Factory | Entered DSF 1801 | -5/DSF | Additional patrols routed to DSF 1820 | -5/DSF | Discovered new exit (range 19) 1853 | -5/DSF | Entered Factory 1853 | -4/Factory | Evolved 2 slots: Utility x2 1883 | -4/Factory | Lost 4 parts (4u) 2036 | -4/Factory | Discovered new exit (range 10) 2071 | -4/Factory | Lost 3 parts (1n2w) 2095 | -4/Factory | Entered Research 2095 | -3/Research | Evolved 2 slots: Propulsion x1, Utility x1 2124 | -3/Research | Lost 4 parts (1n1u2w) 2302 | -3/Research | Fabricated Lgt. Regenerative Plating (x1) 2434 | -3/Research | Core integrity fell below 50% 2434 | -3/Research | System corruption reached 10% 2437 | -3/Research | Build established: Hacker-Mutant 2464 | -3/Research | Core integrity fell below 20% 2476 | -3/Research | Destroyed by H-71 Marshal with Heavy Mass Driver Last Messages --------------- 02463_ ALERT: Potential suspicious activity detected, Programmers report to Research Zone 6S. 02464_ M-36 Artificer repairs H-77 Assassin. 02465_ K-01 Serf collects debris. 02465_ Critical hit (Burn: +50). 02468_ K-01 Serf collects debris. 02470_ Penetrated by Slug. 02470_ Slug penetrates Wall. 02470_ W-44 Eye destroyed. 02470_ Imp. Matter Compressor destroyed. 02470_ Adv. Cryofiber Web destroyed. 02471_ System corrupted: IFF burst signal emitted. 02472_ H-71 Marshal calls for reinforcements. 02472_ ALERT: Suspicious intruders detected, dispatching Cutter reinforcements to area. 02473_ M-36 Artificer repairs G-73 Enforcer. 02473_ Slug penetrates Wall. 02473_ Penetrated by Slug. Map ----- +----------------------------------------------------+ | ?????????????????????????????????????????????????? | | ?????????????????????????????????????????????????? | | ?????????????????????????????????????????????????? | | ?????????????????????????????????????????????????? | | ?????????????????????????????????????????????????? | | ?????????????????????????????????????????????????? | | ?????????????????????????????????????????????????? | | ?????????????? ??????????????????????????????????? | | ?????????????# #?????????????????????????????????? | | ????????????? ????????????????????????????????? | | ????????????? ????????????????????????????????? | | ?????????????! ????????????????????????????????? | | ????????????? ????????????????????????????????? | | ?????????????# #????????????????????????????????? | | ?????????????# #????????????????????????????????? | | ?????????????# #????????????????????????????????? | | ?????????????# #????????????????????????????????? | | ????????????## ##???????????????????????????????? | | ????????????# #???????????????????????????????? | | ????????????+ #???????????????????????????????? | | ????????????# #???????????????????????????????? | | ????????????# #???????????????????????????????? | | ????????????# #???????????????????????????????? | | ????????????# #???????????????????????????????? | | ############# ############# ! #?????????????? | | g= % @ H #?????????????? | | ! %*p ###########;; #?????????????? | | !*= ! #?????????????? #?????????????? | | % = ! #???????????????????????????????? | | ##/########## #???????????????????????????????? | | #????# #???????????????????????????????? | | #????# #???????????????????????????????? | | ! #????# #???????????????????????????????? | | ! #????# #???????????????????????????????? | | #????# #???????????????????????????????? | | #????# #???????????????????????????????? | | #????# #???????????????????????????????? | | #????# ###########?????????????????????? | | ############# # #?????????????????????? | | ??# # # #?????????????????????? | | ??# # # #?????????????????????? | | ??# # # #?????????????????????? | | ??# + + ""T"" #?????????????????????? | | ??# # # """"" #?????????????????????? | | ??# """ # # #?????????????????????? | | ### """ # # #?????????????????????? | | + """ # ###########?##############??????? | | ############# #???????????# #??????? | | # # #???????????# #??????? | | # + #???????????# "" #??????? | +----------------------------------------------------+ Best States ------------- Heat Dissipation 46 Energy Generation 37 Energy Capacity 540 Matter Stores 300 Matter Capacity 600 Sight Range 20 Terrain Scan Range 20 Terrain Scan Density 210 Additional Mass Support 9 Base Temperature (-) 200 Armor Coverage 225 Resistance: KI 20 Core Shielding 20 Propulsion Shielding 66 Evasion (%) 63 Targeting Accuracy 5 Melee Accuracy 6 Target Analysis 6 Core Analysis 6 Recoil Reduction 4 Offensive Hacking 12 Defensive Hacking 12 Item Schematics ----------------- Xenon Bombardment Thruster | -8/Recycling | Hacked Fission Core | -6/Factory | Hacked Combat Drone Bay | -6/Data Miner | Free Lgt. Regenerative Plating | -6/Data Miner | Free Cld. Gravmag System | -6/Data Miner | Free Hvy. Gatling Laser | -6/Data Miner | Free Prc. Matter Filter | -6/Data Miner | Free Adv. VSS Leg | -6/Data Miner | Free Adv. Hardlight Generator | -6/Data Miner | Free HERF Cannon | -6/Data Miner | Free Imp. Remote Datajack | -6/Data Miner | Free Antigrav Array | -6/Data Miner | Free Hardcell Cannon | -4/Factory | Scanalyzed Robot Schematics ------------------ A-15 Conveyor | -6/Data Miner | Free L-41 Fighter | -6/Data Miner | Free E-15 Imp | -6/Data Miner | Free L-61 Swordsman | -6/Data Miner | Free G-50 Soldier | -6/Data Miner | Free Fabricated ------------ Lgt. Regenerative Plating | x1 | -3/Research Repaired ---------- Nothing Studied --------- Hardcell Cannon | -4/Factory | Hacked Lrn. Proton Cannon | -4/Factory | Hacked Arm. Huge Wheel | -4/Factory | Hacked Arm. Wheel | -4/Factory | Hacked Alien Tech Used ----------------- None Achievements -------------- Dangerous Findings I Have A Map? Just What I Needed Omniscient Cartographer Party Time Respectable Loadout The Oracle Challenges ------------ None Game ------ Seed HardcellNavigationCutter Manual? 0 Play Time 01:02:16 Cumulative 14.6 hours Start 2026.04.09 @ 05:09:42 End 2026.04.09 @ 06:21:57 Sessions 1 Manual Loads 0 Difficulty Rogue Special Mode None Game No. 25 Rogue 25 Adventurer 0 Explorer 0 Win Type - Total 0 Types 0/0/0/0/0/0/0/0/0/0 Lore% 11 Gallery% 17 Achievement% 16 Wizard Run 0 Options --------- Layout 1 ASCII 0 Keyboard 0 Movement Mouse Keybinds 0 Fullscreen 1 Font 32/SmallcapsGlow Map View 50x35 Zoom Use 0% Tactical HUD 1 Map Filters NONE Filters NONE Steam 1 RUN: 70cb17dd-42a4-4605-9c83-6c49b8ca4ec3